{"text_format":"1","workbook":"xlsx","n_sheets":2,"sheets":["Disclaimer","The Model"],"not_rendered":{"charts":0,"images":0,"macros":1,"external_links":0,"defined_names":54,"comments":1,"pivot_tables":0},"unopened":[],"bounds":{"document_bytes":16777216,"sheet_cells":100000,"rows_first":2000,"rows_last":500,"rows_between":2000,"halvings":0,"cell_chars":16384,"cell_head_chars":4096},"cells_cut":0,"cells_raw":0,"read":"whole","date_system":"1900"}

{"sheet":"Disclaimer","index":0,"n_rows":98,"n_cols":1,"rows_kept":98,"cut":false,"hidden":false,"merged":[]}
["CHR TOOLS EVALUATION LICENSE"]
[]
["IMPORTANT --- READ CAREFULLY. This evaluation license agreement (\"Agreement\") is a legal contract between you (either an individual or a single business entity) and The Center for Hospitality Research at Cornell University (\"Licensor\") for the software product identified above, which includes computer software and, as applicable, associated media, printed materials, and \"online\" or electronic documentation (the \"Software Application\")."]
[]
["BY INSTALLING, COPYING, OR OTHERWISE USING THE SOFTWARE APPLICATION, YOU AGREE TO BE BOUND BY THE TERMS OF THIS AGREEMENT. IF YOU DO NOT AGREE TO THE TERMS OF THIS AGREEMENT, DO NOT INSTALL OR USE THE SOFTWARE APPLICATION."]
[]
["License Terms"]
[]
["Following acceptance of this Agreement and on-line registration with the Licensor, you may use, strictly for trial use and evaluation purposes only, one copy of the Software Application."]
[]
["You may not reverse engineer, decompile, disassemble, or otherwise translate the Software Application, except and only to the extent that such activity is expressly permitted by applicable law notwithstanding this limitation."]
[]
["The Software Application and related user documentation if any are proprietary products of Licensor protected under U.S. copyright law. All right, title, and interest in and to the Software Application, including associated intellectual property rights, are and shall remain with Licensor. This Agreement does not convey to you an interest in or to the Software Application, but only a limited right of use revocable in accordance with the terms of this Agreement."]
[]
["The Software Application is provided without charge under this evaluation license. The free trial period is of limited duration. Licensor may extend the free trial period, but reserves the right, at any time, to condition access on the payment of charges. Licensor may terminate access to the tool upon 30 days' prior notice."]
[]
["Licensor will not provide you with support services related to the Software Application, and is under no obligation to do so."]
[]
["You may not distribute copies of the Software Application to third parties or transfer any rights under this Agreement."]
[]
["Without prejudice to any other rights, Licensor may terminate this Agreement if you fail to comply with the terms and conditions of this Agreement. In such event, you must destroy all copies of the Software Application and all of its component parts."]
[]
["Governing Law"]
[]
["This Agreement shall be governed by the laws of the State of New York."]
[]
["Proprietary Rights"]
[]
["Copyright. All title and copyrights in and to the Software Application (including, without limitation, any images, photographs, animations, video, audio, music, text, and \"applets\" incorporated into the Software Application), the accompanying media and printed materials, and any copies of the Software Product are owned by Licensor or its suppliers. The Software Application is protected by copyrights laws and international treaty provisions. Therefore, you must treat the software Application like any other copyrighted material, subject to the provisions of this Agreement."]
[]
["U.S. Government Restricted Rights. The Software Application and documentation are provided with RESTRICTED RIGHTS. Use, duplication, or disclosure by the Government is subject to restrictions as set forth in subparagraph (c)(1)(ii) of the Rights in technical Data and Computer Software clause at DFARS 252.227-7013 or subparagraphs (c) (1) and (2) of the Commercial Computer Software -- Restricted Rights at 48 CFR 52.227-19, as applicable. Manufacturer for such purpose is The Center for Hospitality Research, with offices in the School of Hotel Administration at Cornell University, Ithaca, NY 14853."]
[]
["Submissions. Should you decide to transmit to Licensor's website by any means or by any media any materials or other information (including, without limitation, ideas, concepts or techniques for new or improved services and products), whether as information, feedback, data, questions, comments, suggestions or the like, you agree such submissions are unrestricted and shall be deemed non-confidential and you automatically grant Licensor and its assigns a non-exclusive, royalty-free, worldwide, perpetual, irrevocable license, with the right to sublicense, to use, copy, transmit, distribute, create derivative works of, display and perform the same."]
[]
["Disclaimer Of Warranty"]
[]
["THIS SOFTWARE AND THE ACCOMPANYING FILES ARE PROVIDED \"AS IS\". LICENSOR AND ITS SUPPLIERS DO NOT AND CANNOT WARRANT THE PERFORMANCE OR RESULTS YOU MAY OBTAIN BY USING THE SOFTWARE OR SUCH FILES. LICENSOR AND ITS SUPPLIERS MAKE NO WARRANTIES, EXPRESS OR IMPLIED, AS TO TITLE OR INFRINGEMENT OF THIRD-PARTY RIGHTS, MERCHANTABILITY OR FITNESS FOR ANY PARTICULAR PURPOSE."]
[]
["Good data processing procedure dictates that any program be thoroughly tested with non-critical data before relying on it. the user must assume the entire risk of using the Software Application. ANY LIABILITY OF LICENSOR FOR A DEFECTIVE COPY OF THE SOFTWARE APPLICATION WILL BE LIMITED EXCLUSIVELY TO REPLACEMENT OF YOUR COPY OF THE SOFTWARE APPLICATION WITH ANOTHER COPY OR REFUND OF THE INITIAL LICENSE FEE LICENSOR RECEIVED FROM YOU FOR THE DEFECTIVE COPY OF THE PRODUCT (IF ANY). IN NO EVENT WILL LICENSOR OR ITS SUPPLIERS BE LIABLE TO YOU FOR ANY CONSEQUENTIAL, INCIDENTAL OR SPECIAL DAMAGES, INCLUDING ANY LOST PROFITS OR LOST SAVINGS, EVEN IF A LICENSOR REPRESENTATIVE HAS BEEN ADVISED OF THE POSSIBILITY OF SUCH DAMAGES, OR FOR ANY CLAIM BY ANY THIRD PARTY."]
[]
["Some states or jurisdictions do not allow the exclusion or limitation of incidental, consequential or special damages, or the exclusion of implied warranties or limitations on how long a given warranty may last, so the above limitations may not apply to you."]
[]
["CHR TOOLS END-USER LICENSE"]
[]
["LICENSOR'S PROGRAM IS COPYRIGHTED AND LICENSED (NOT SOLD). LICENSOR DOES NOT SELL OR TRANSFER TITLE TO THE LICENSED PROGRAM TO YOU. YOUR LICENSE OF THE LICENSED PROGRAM WILL NOT COMMENCE UNTIL YOU HAVE REGISTERED WITH LICENSOR, PAID THE LICENSE FEE AND HAVE RECEIVED AN ACTIVATION CODE."]
[]
["IMPORTANT --- READ CAREFULLY. This evaluation license agreement (\"Agreement\") is a legal contract between you (either an individual or a single business entity) and The Center for Hospitality Research at Cornell University (\"Licensor\") for the software product identified above, which includes computer software and, as applicable, associated media, printed materials, and \"online\" or electronic documentation (the \"Software Application\")."]
[]
["BY INSTALLING, COPYING, OR OTHERWISE USING THE SOFTWARE APPLICATION, YOU AGREE TO BE BOUND BY THE TERMS OF THIS AGREEMENT. IF YOU DO NOT AGREE TO THE TERMS OF THIS AGREEMENT, DO NOT INSTALL OR USE THE SOFTWARE APPLICATION. "]
[]
["1. License. In exchange for payment of the license fee, Licensor grants you a nonexclusive license to use the package of computer programs and data in machine-readable form and related materials, including documentation and listings which together constitute the \"Licensed Program\", subject to the following terms and conditions."]
[]
["2. Scope of Rights. You may:"]
["-- Install and execute the Licensed Program on the computer specified in the license registration process, to serve the internal needs of your business;"]
["-- In support of your authorized use of the Licensed Program, store the Licensed Program's machine-readable instructions or data in, transmit it through, and display it on machines associated with the specified computer."]
[]
["3. Support. Licensor shall support the Licensed Program without additional charge, by e-mail and by free upgrades of the Licensed Program as they may be issued, for a period of one year following the beginning of the license term. Licensor is not obligated to issue any upgrades of the Licensed Program."]
[]
["4. Your Responsibilities:"]
[]
["You are responsible for selecting an operator who is qualified to operate the Licensed Program on your own equipment and who is familiar with the information, calculations, and reports that serve as input and output of the Licensed Program; -- You are solely responsible for payment of any taxes (including sales or use taxes, intangible taxes, and property taxes) resulting from your acceptance of this license and your possession and use of the Licensed Program, exclusive of taxes based on Licensor's income. Licensor reserves the right to have you pay any such taxes as they fall due to Licensor for remittance to the appropriate authority. You agree to hold harmless Licensor from all claims and liability arising from your failure to report or pay such taxes;"]
["You are solely responsible for converting your data files for use with the Licensed Program, and Licensor assumes no responsibility for such conversion;"]
["You are responsible for reasonable backup precautions; Licensor shall have no liability for loss of data or documentation."]
[]
["5. Proprietary Protection and Ownership. Licensor is and shall remain the sole and exclusive owner of all right, title and interest in and to the Licensed Program and all modifications and enhancements thereof (including ownership of all trade secrets and copyrights pertaining thereto), subject only to the rights and privileges expressly granted to you herein by Licensor. This Agreement does not provide you with title or ownership of the Licensed Program, but only a right of limited use."]
[]
["6. Restrictions on Use of the Licensed Program. You may not:"]
[]
["Use, copy, modify, or distribute the Licensed Program (electronically or otherwise), or any copy, adaptation, transcription, or merged portion thereof, except as expressly authorized by Licensor;"]
["Reverse assemble, reverse compile, or otherwise translate the Licensed Program;"]
["Transfer, lease, assign, or sublicense the Licensed Program except for a transfer of the Licensed Program in its entirety to (1) a successor in interest of your entire business who assumes the obligations of this Agreement or (2) any other party who is reasonably acceptable to Licensor and who enters into a substitute version of this Agreement, and pays an administrative fee intended to cover attendants costs;"]
["Use the Licensed Program for service bureau work, multiple-user license, or time-sharing arrangement;"]
["Install the Licensed Program in any other computer system or use it at any other location without first de-activating the Licensed Program on the computer from which the Licensed Program is to be transferred as provided by the operating instructions."]
[]
["7. Infringement. If a third party claims that the Licensed Program infringes its patent, copyright, or trade secret, or any similar intellectual property right, Licensor will defend you against that claim at Licensor's expense and pay all damages that a court finally awards, provided that you promptly notify Licensor in writing of the claim, and allow Licensor to control, and cooperate with Licensor in, the defense or any related settlement negotiations. If such a claim is made or appears possible, you agree to permit Licensor to enable you to continue to use the Licensed Programs, or to modify or replace them. If Licensor determines that none of these alternatives is reasonably available, you agree to return the Licensed Program on Licensor's written request, and you will then receive a credit equal to your net book value for the Licensed Program determined in accordance with generally accepted accounting principles. However, Licensor has no obligation for any claim based on your modification of the Licensed Program or its combination, operation, or use with any product, data, or apparatus not specified or provided by Licensor, provided that such claim solely and necessarily is based on such combination, operation, or use and such claim would be avoided by combination, operation, or use with products, data, or apparatus specified or provided by Licensor. THIS PARAGRAPH STATES LICENSOR'S ENTIRE OBLIGATION TO YOU WITH RESPECT TO ANY CLAIM OF INFRINGEMENT."]
[]
["8. Limited Warranty and Limitation of Liability. Licensor warrants, for your benefit alone, that the Licensed Program conforms in all material respects to the specifications for the current version of the Licensed Program."]
[]
["EXCEPT AS EXPRESSLY SET FORTH IN THIS AGREEMENT, LICENSOR DISCLAIMS ANY AND ALL PROMISES, REPRESENTATIONS, AND WARRANTIES WITH RESPECT TO THE LICENSED PROGRAM, INCLUDING ITS CONDITION, ITS CONFORMITY TO ANY REPRESENTATION OR DESCRIPTION, THE EXISTENCE OF ANY LATENT OR PATENT DEFECTS, ANY NEGLIGENCE, AND ITS MERCHANTABILITY OR FITNESS FOR A PARTICULAR USE."]
[]
["The cumulative liability of Licensor to you for all claims relating to the Licensed Program and this Agreement, including any cause of action sounding in contract, tort, or strict liability, shall not exceed the total amount of all license fees paid to Licensor hereunder. This limitation of liability is intended to apply without regard to whether other provisions of this Agreement have been breached or have proven ineffective. This limitation of liability shall not apply to the indemnification provided in Section 7 hereof. In no event shall Licensor be liable for any loss of profits; any incidental, special, exemplary, or consequential damages; or any claims or demands brought against you even if Licensor has been advised of the possibility of such claims or demands. This limitation upon damages and claims is intended to apply without regard to whether other provisions of this Agreement have been breached or have proven ineffective."]
[]
["You may have additional rights under certain laws (e.g., consumer laws) that do not allow the exclusion of implied warranties, or the exclusion or limitation of certain damages. If such laws apply, our exclusions or limitations do not apply to you."]
[]
["9. Submissions. Should you decide to transmit to Licensor's website by any means or by any media any materials or other information (including, without limitation, ideas, concepts or techniques for new or improved services and products), whether as information, feedback, data, questions, comments, suggestions or the like, you agree such submissions are unrestricted and shall be deemed non-confidential and you automatically grant Licensor and its assigns a non-exclusive, royalty-free, worldwide, perpetual, irrevocable license, with the right to sublicense, to use, copy, transmit, distribute, create derivative works of, display and perform the same."]
[]
["10. Term of Agreement; Termination. Your license of the Licensed Program shall become effective upon delivery of the Licensed Program to you and your payment of the license fee therefore, and shall continue in perpetuity unless terminated as provided herein."]
[]
["Upon termination of this Agreement, all rights granted to you will terminate and revert to Licensor. Promptly upon termination of this Agreement for any reason or upon discontinuance or abandonment of your possession or use of the Licensed Program, you must return or destroy, as requested by Licensor, all copies of the Licensed Program in your possession (whether modified or unmodified), and all other materials pertaining to the Licensed Program (including all copies thereof). You agree to certify your compliance with such restriction upon Licensor's request."]
[]
["11. Miscellaneous."]
[]
["This Agreement shall be governed by and construed in accordance with the laws of the State of New York."]
["No modification of this Agreement shall be binding unless it is in writing and is signed by an authorized representative of the party against whom enforcement of the modification is sought."]
["References to your use or benefit include any subsidiaries you may own directly or indirectly by more than fifth percent (50%), provided that, to the extent of their use and benefit, they comply with the restrictions herein."]
["Any notices required or permitted under this Agreement shall be in writing and delivered in person or sent by registered or certified mail, return receipt requested, with proper postage affixed."]
["In the event that any of the terms of this Agreement is or becomes or is declared to be invalid or void by any court or tribunal of competent jurisdiction, such term or terms shall be null and void and shall be deemed severed from this Agreement and all the remaining terms of this Agreement shall remain in full force and effect."]
["THIS AGREEMENT IS THE COMPLETE AND EXCLUSIVE STATEMENT OF LICENSOR'S OBLIGATIONS AND RESPONSIBILITIES TO YOU AND SUPERSEDES ANY OTHER PROPOSAL, REPRESENTATION OR OTHER COMMUNICATION BY OR ON BEHALF OF LICENSOR RELATING TO THE SUBJECT MATTER HEREOF."]

{"sheet":"The Model","index":1,"n_rows":22,"n_cols":82,"rows_kept":22,"cut":false,"hidden":false,"merged":[[20,3,20,10],[21,3,21,10],[16,3,17,10],[2,0,3,0],[4,2,11,2],[18,3,18,10],[1,70,2,81],[0,51,1,58],[0,60,1,67],[18,0,19,0],[13,3,13,5],[2,50,3,50],[0,35,0,48],[2,18,3,18],[2,34,3,34],[13,9,13,10],[13,7,13,8],[14,3,14,5],[4,12,11,12],[2,19,2,32],[19,3,19,10]]}
["Round-Up",null,"Party Size",1,2,3,4,5,6,7,8,null,"Table Size:","2-Tops","4-Tops","6-Tops","8-Tops",null,null,null,null,null,null,null,null,null,null,null,null,null,null,null,null,null,null,"Table Usage",null,null,null,null,null,null,null,null,null,null,null,null,null,null,null,"Reservations Accepted",null,null,null,null,null,null,null,null,"Reservations Declined"]
[0,null,"Party Value",25.8,48.77,69.86,88.9,105.19,120.56,133.13,144.94999999999999,null,"Number",2,16,14,0,null,null,null,null,null,null,null,null,null,null,null,null,null,null,null,null,null,null,"t","u","v","w","x","y","z","aa","ab","ac","ad","ae","af","ag",null,null,null,null,null,null,null,null,null,null,null,null,null,null,null,null,null,null,null,null,null,"The values in the cells below should not be deleted.  They provide service level estimates from another study."]
["Reservation Time",null,"Duration (minutes)",42,54,59,68,74,79,84,98,null,"Space/Table",35,55,75,95,null,"Reservation Time","Reservations Accepted and Seated in Tables",null,null,null,null,null,null,null,null,null,null,null,null,null,null,"Reservation Time",1,2,1,2,3,4,3,4,5,6,5,6,7,8,null,"Reservation Time",1,2,3,4,5,6,7,8,null,1,2,3,4,5,6,7,8]
[null,null,"Duration in Periods",{"$f":"ROUNDUP((D3+$A$2*15)/15,0)","v":3},{"$f":"ROUNDUP((E3+$A$2*15)/15,0)","v":4},4,5,5,6,6,7,null,"Space:","Used",{"$f":"SUMPRODUCT(N2:Q2,N3:Q3)","v":2000},"Available",2000,null,null,"1in2","2in2","1in4","2in4","3in4","4in4","3in6","4in6","5in6","6in6","5in8","6in8","7in8","8in8",null,null,{"$f":"T4","v":"1in2"},"2in2","1in4","2in4","3in4","4in4","3in6","4in6","5in6","6in6","5in8","6in8","7in8","8in8",null,null,null,null,null,null,null,null,null,null,null,null,null,null,null,null,null,null,null,null,null,null,0,1,2,3,4,5,6,7,8,9,10]
["18:00:00",null,"Demand Forecast",9,7,10,3,5,5,1,1,null,"Tables Used By Period",{"$f":"SUM(AJ5:AK5)","v":2},{"$f":"SUM(AL5:AO5)","v":9.9999999999999929},{"$f":"SUM(AP5:AS5)","v":9.0000000000000036},{"$f":"SUM(AT5:AW5)","v":0},null,{"$f":"$A5","v":"18:00:00"},2,0,6,0,0.99999999999999334,3,0,0,4.0000000000000036,5,0,0,0,0,null,{"$f":"$A5","v":"18:00:00"},{"$f":"SUM(INDIRECT(AJ$2&MAX(ROW(A5)-OFFSET($C$4,0,AJ$3)+1,1)&\":\"&AJ$2&ROW(A5)))","v":2},0,6,0,0.99999999999999334,3,0,0,4.0000000000000036,5,0,0,0,0,null,{"$f":"$A5","v":"18:00:00"},{"$f":"T5+V5","v":8},{"$f":"U5+W5","v":0},{"$f":"X5+Z5","v":0.99999999999999334},3,{"$f":"AB5+AD5","v":4.0000000000000036},{"$f":"AC5+AE5","v":5},{"$f":"AF5","v":0},{"$f":"AG5","v":0},null,{"$f":"D5-AZ5","v":1},{"$f":"E5-BA5","v":7},9.0000000000000071,0,0.99999999999999645,0,1,1,null,null,null,"SL","SL > 1","SL (>2)",null,null,"SL > 5",null,null,null,null,"SL > 10"]
[{"$f":"A5+15/1440","v":"18:15:00"},null,null,9,2,10,9,5,7,2,0,null,null,2,15.999999999999993,14.000000000000004,0,null,{"$f":"$A6","v":"18:15:00"},0,0,0,0,0,6.0000000000000009,0,0,0,5,0,0,0,0,null,{"$f":"$A6","v":"18:15:00"},2,0,6,0,0.99999999999999334,9,0,0,4.0000000000000036,10,0,0,0,0,null,{"$f":"$A6","v":"18:15:00"},{"$f":"T6+V6","v":0},{"$f":"U6+W6","v":0},0,6.0000000000000009,{"$f":"AB6+AD6","v":0},{"$f":"AC6+AE6","v":5},{"$f":"AF6","v":0},{"$f":"AG6","v":0},null,{"$f":"D6-AZ6","v":9},{"$f":"E6-BA6","v":2},{"$f":"F6-BB6","v":10},{"$f":"G6-BC6","v":2.9999999999999991},{"$f":"H6-BD6","v":5},{"$f":"I6-BE6","v":2},{"$f":"J6-BF6","v":2},{"$f":"K6-BG6","v":0},null,null,"0.0",0.15491531713632867,0.13359677047022464,0.11402380670673058,null,null,6.6878939187517972E-2,null,null,null,null,2.5405791931461863E-2]
[{"$f":"A6+15/1440","v":"18:30:00"},null,null,7,8,6,6,5,4,3,1,null,null,2,15.999999999999993,14.000000000000004,0,null,"18:30:00",0,0,0,0,0,0,0,0,4.4408920985006262E-16,0,0,0,0,0,null,"18:30:00",2,0,6,0,0.99999999999999334,9,0,0,4.0000000000000036,10,0,0,0,0,null,"18:30:00",0,0,0,0,4.4408920985006262E-16,0,0,0,null,7,8,6,6,5,4,3,1,null,null,"0.5",2.2887117575010052E-2,1.9548648950149072E-2,1.6788010205952258E-2,null,null,1.0761279518116377E-2,null,null,null,null,5.3424308322765528E-3]
["18:45:00",null,null,1,5,6,5,6,6,1,1,null,null,2,15.999999999999993,14.000000000000004,0,null,"18:45:00",0,2,0,0,6,0,0,0,0,0,0,0,0,0,null,"18:45:00",0,2,0,0,6.9999999999999929,9,0,0,4.0000000000000036,10,0,0,0,0,null,"18:45:00",0,2,6,0,0,0,0,0,null,1,3,0,5,6,6,1,1,null,null,"1.0",1.0695069783650979E-2,9.2528332729481608E-3,8.0211930962927145E-3,null,null,5.2989438990304434E-3,null,null,null,null,2.7808535463691442E-3]
["19:00:00",null,null,9,6,5,7,7,6,2,0,null,null,2,15.999999999999993,14.000000000000004,0,null,"19:00:00",0,0,0.99999999999999334,0,0,0,0,0,0,0,0,0,0,0,null,"19:00:00",0,2,0.99999999999999334,0,6,9,0,0,4.0000000000000036,10,0,0,0,0,null,"19:00:00",0.99999999999999334,0,0,0,0,0,0,0,null,8.0000000000000071,6,5,7,7,6,2,0,null,null,"1.5",3.460761647341807E-3,3.0544128399062251E-3,2.7057021088031283E-3,null,null,1.9194058076503022E-3,null,null,null,null,1.089412231787416E-3]
["19:15:00",null,null,5,8,4,3,5,7,1,0,null,null,2,15.999999999999993,14.000000000000004,0,null,"19:15:00",0,0,0,0,0,3,0,0,0,4.0000000000000036,0,0,0,0,null,"19:15:00",0,2,0.99999999999999334,0,6,9,0,0,4.4408920985006262E-16,14.000000000000004,0,0,0,0,null,"19:15:00",0,0,0,3,0,4.0000000000000036,0,0,null,5,8,4,0,5,2.9999999999999964,1,0,null,null,"2.0",1.8687149159196299E-3,1.6596037968004869E-3,1.4668989281858558E-3,null,null,1.031877598464348E-3,null,null,null,null,6.1165393369814558E-4]
["19:30:00",null,null,3,4,6,6,6,5,2,1,null,null,2,15.999999999999993,14.000000000000004,0,null,"19:30:00",0,0,0,0,0,6.0000000000000009,0,0,0,5,0,0,0,0,null,"19:30:00",0,2,0.99999999999999334,0,6,9,0,0,4.4408920985006262E-16,14.000000000000004,0,0,0,0,null,"19:30:00",0,0,0,6.0000000000000009,0,5,0,0,null,3,4,6,0,6,0,2,1]
["19:45:00",null,null,2,2,10,4,2,3,1,0,null,null,2,15.999999999999993,14.000000000000004,0,null,"19:45:00",0,2,0,0,2.9999999999999933,4,0,0,2,3,0,0,0,0,null,"19:45:00",0,2,0,0,2.9999999999999933,13,0,0,2,12.000000000000004,0,0,0,0,null,"19:45:00",{"$f":"T12+V12","v":0},{"$f":"U12+W12","v":2},2.9999999999999933,4,{"$f":"AB12+AD12","v":2},{"$f":"AC12+AE12","v":3},{"$f":"AF12","v":0},{"$f":"AG12","v":0},null,2,0,7.0000000000000071,0,0,0,1,0]
[null,null,"Total",{"$f":"SUM(AZ5:AZ12)","v":8.9999999999999929},4,9.9999999999999858,22,6.0000000000000036,22.000000000000004,0,0,null,"Minimum #",0,0,0,0]
[null,null,null,"Wait Time Limit",null,null,0,"Total Value",null,{"$f":"SUMPRODUCT(D13:K13,D2:K2)","v":6365.1399999999994},null,null,"Maximum #",1000,1000,1000,1000]
[null,null,null,"Estimated Service Level",null,null,{"$f":"OFFSET(BT6,A2*2,G14)","v":0.15491531713632867}]
["Legend"]
["Inputs",null,null,"Estimated Service Level  = Estimated percentage of parties waiting for a table longer than the specified time"]
["Decisions"]
["Objective (maximize)"]
[null,null,null,"Notes"]
["Key Outputs",null,null,"This model allows only 2, 4, 6 & 8 tops for eight 15-minute periods."]
[null,null,null,"Parties will be seated in a table with no more than 3 empty seats."]